Cogmind - Beta 15 @@@ ROGUE MODE // 2025.06.01 @ 17:27:25 Player: Elias Result: Destroyed by H-61 Shepherd with Heavy Assault Cannon Performance ------------- Evolutions (2) 1000 Regions Visited (3) 600 Robots Destroyed (17) 85 Value Destroyed (562) 562 Prototype IDs (1) 20 Alien Tech Used (0) 0 Bonus (0) 0 TOTAL SCORE: 2267 Bonus ------- None Cogmind --------- Core Integrity 0/550 Matter 300/300 Energy 100/100 System Corruption 0% Temperature Cool (0) Movement Core (1700) Ox33 Location -8/Materials Parts ------- > --- POWER (1) -------- (None) > --- PROPULSION (4) --- (None) > --- UTILITY (4) ------ Large Storage Unit Huge Storage Unit Seismic Detector > --- WEAPON (2) ------- (None) > --- INVENTORY (25) --- Deuterium Engine Light Treads Light Treads VSS Leg Wheel Heat Sink Targeting Computer Recoil Stabilizer Hardened Light Armor Plating Hardlight Generator Medium Laser Particle Gun High-powered Shotgun Mining Laser Peak State ------------ > --- POWER ------------ Cooled Ion Engine > --- PROPULSION ------- Aluminum Leg Aluminum Leg > --- UTILITY ---------- Large Storage Unit Huge Storage Unit Seismic Detector Utility Shielding > --- WEAPON ----------- EM Pulse Cannon High-powered Shotgun > --- INVENTORY -------- Deuterium Engine Light Treads Light Treads Heat Sink Targeting Computer Recoil Stabilizer Hardened Light Armor Plating Hardlight Generator Medium Laser Particle Gun Mining Laser [Rating: 16] Favorites ----------- Power Ion Engine Engine Ion Engine Propulsion Aluminum Leg Leg Aluminum Leg Utility Seismic Detector Device Seismic Detector Storage Large Storage Unit Protection Utility Shielding Weapon Medium Laser Energy Gun Medium Laser Energy Cannon EM Pulse Cannon Ballistic Gun High-powered Shotgun Build | -11 -10 -10 -8 ------- Run | Yrd Mat Sub Mat Slots Evolved 4 | . . . 4 Power . | . . . . Propulsion 2 | . . . 2 Utility 2 | . . . 2 Weapon . | . . . . Parts Attached 18 | 7 3 . 8 Power 4 | 1 1 . 2 Engine 4 | 1 1 . 2 Core . | . . . . Reactor . | . . . . Propulsion 5 | 2 1 . 2 Treads . | . . . . Leg 5 | 2 1 . 2 Wheel . | . . . . Hover . | . . . . Flight . | . . . . Utility 5 | 2 1 . 2 Device 1 | 1 . . . Storage 3 | 1 1 . 1 Processor . | . . . . Hackware . | . . . . Protection 1 | . . . 1 Artifact . | . . . . Weapon 4 | 2 . . 2 Energy Gun 2 | 2 . . . Energy Cannon 1 | . . . 1 Ballistic Gun 1 | . . . 1 Ballistic Cannon . | . . . . Launcher . | . . . . Special Weapon . | . . . . Impact Weapon . | . . . . Slashing Weapon . | . . . . Piercing Weapon . | . . . . Special Melee Weapon . | . . . . Unidentified Prototypes 1 | . . . 1 Parts Lost 12 | . 2 . 10 Power 2 | . 1 . 1 Propulsion 5 | . 1 . 4 Utility 1 | . . . 1 Weapon 4 | . . . 4 Highest Loss Streak 6 | . 1 . 6 To Critical Strikes . | . . . . Average Backups 8 | 3 5 8 10 Power . | . . . . Propulsion 2 | 1 2 4 2 Utility 2 | . . 2 4 Weapon 2 | 1 2 2 3 Tool/Special . | . . . . Unused Backups 12 | 1 . . 11 Power 1 | . . . 1 Propulsion 3 | 1 . . 2 Utility 5 | . . . 5 Weapon 3 | . . . 3 Tool/Special . | . . . . Average Slot Usage (%) 91 | . 93 100 83 Engine 11 | . 12 14 8 Leg 24 | . 23 28 22 Device 11 | . 14 14 9 Storage 15 | . 14 14 17 Protection 3 | . . . 7 Energy Gun 21 | . 28 28 11 Energy Cannon 1 | . . . 2 Ballistic Gun 1 | . . . 3 Peak Build Rating 16 | 7 7 7 16 Average Rating 9 | 4 6 7 13 On Entrance 5 | . 7 7 7 Naked Turns . | . . . . Heaviest Build 119 | 12 29 29 119 Greatest Support 40 | 20 20 20 40 Greatest Overweight (x) 39 | . 1 1 39 Average Overweight (x) 1 | . . 1 4 Largest Inventory Capacity 25 | 8 15 15 25 Average Capacity 16 | 6 8 15 24 Most Carried 15 | 6 8 8 15 Average Carried 8 | 3 6 8 10 Final Capacity 25 | 8 15 15 25 Final Carried 14 | 5 8 8 14 Class Distribution -------------------- 75% | Mutant 24% | Scavenger-Mutant Dominant Class ---------------- Mutant | -10/Materials Mutant | -10/Subcaves Scavenger-Mutant | -8/Materials Resources | -11 -10 -10 -8 ----------- Run | Yrd Mat Sub Mat Matter Collected 386 | 238 37 . 111 Remotely . | . . . . Salvage Created 823 | 108 195 . 520 Parts 33 | 5 4 . 24 Haulers Intercepted . | . . . . Recyclers Shooed 2 | 2 . . . Parts Field Recycled . | . . . . Retrieved Matter . | . . . . Parts Self-Destructed . | . . . . Prevented . | . . . . Kills | -11 -10 -10 -8 ------- Run | Yrd Mat Sub Mat Combat Hostiles Destroyed 11 | . 4 . 7 Guns 8 | . 4 . 4 Cannons 3 | . . . 3 Classes Destroyed 7 | 2 1 . 4 Builder 1 | . . . 1 Tunneler 2 | 2 . . . Recycler 3 | 1 . . 2 Grunt 6 | . 4 . 2 Sentry 1 | . . . 1 Specialist 2 | . . . 2 Hunter 2 | . . . 2 Best Kill Streak 7 | 3 2 . 7 Combat Bots Only 5 | . 2 . 5 Max Kills in Single Turn 1 | 1 1 . 1 Gunslinging . | . . . . Exploded . | . . . . Melee . | . . . . Uniques/NPCs Destroyed . | . . . . Combat | -11 -10 -10 -8 -------- Run | Yrd Mat Sub Mat Hostile Shots Fired 164 | . 42 5 117 Missed 50 | . 8 3 39 Hits 114 | . 34 2 78 Projectile 114 | . 34 2 78 Critical Strikes 6 | . 2 . 4 Damage Taken 1920 | . 454 43 1423 Core 725 | . 146 . 579 Absorbed by Shields . | . . . . Redirected to Shielding 50 | . . . 50 Core Remaining (%) 70 | 100 . 41 . Volleys Fired 67 | 5 30 . 32 Largest 2 | 2 2 . 2 Hottest 90 | 90 90 . 90 Shots Fired 128 | 10 54 . 64 Gun 117 | 10 54 . 53 Cannon 11 | . . . 11 Launcher . | . . . . Special . | . . . . Kinetic 11 | . . . 11 Thermal 106 | 10 54 . 42 Explosive . | . . . . Electromagnetic 11 | . . . 11 Robot Hit Streak 11 | 5 5 . 11 Robot Miss Streak 5 | 1 5 . 2 Penetration Max . | . . . . Secondary Targets . | . . . . Shots Hit Robots 81 | 6 30 . 45 Core Hits 33 | 4 10 . 19 Critical Kills . | . . . . Critical Parts Destroyed . | . . . . Critical Strikes 6 | . 2 . 4 Burn 6 | . 2 . 4 Melee Attacks . | . . . . Impact . | . . . . Slashing . | . . . . Piercing . | . . . . Sneak Attacks . | . . . . Combat Hostiles . | . . . . Follow-up Attacks . | . . . . Damage Inflicted 1230 | 76 348 . 806 Guns 947 | 72 348 . 527 Cannons 229 | . . . 229 Explosions 50 | . . . 50 Melee . | . . . . Ramming 4 | 4 . . . Kinetic 176 | . . . 176 Thermal 821 | 72 348 . 401 Explosive . | . . . . Electromagnetic 229 | . . . 229 Impact . | . . . . Slashing . | . . . . Piercing . | . . . . Highest Corruption . | . . . . Average Corruption . | . . . . Corruption Purged . | . . . . Corruption Blocked . | . . . . Overload Shots . | . . . . Overflow Damage 7 | . . . 7 Projectiles . | . . . . Explosions 7 | . . . 7 Melee . | . . . . Knockbacks . | . . . . Impact . | . . . . Kinetic . | . . . . Secondary . | . . . . Self-Inflicted Damage 30 | . . . 30 Shots 1 | . . . 1 Rammed . | . . . . Targets Rammed 1 | 1 . . . Kicked 1 | 1 . . . Crushed . | . . . . Highest Temperature 513 | 150 513 . 132 Average Temperature 140 | 78 232 . 46 Received Heat Transfer 516 | . 300 . 216 Effects 6 | . 6 . . Shutdowns 3 | . 3 . . Energy Bleed 1 | . 1 . . Interference 2 | . 2 . . Siege Activations . | . . . . Martial Activations . | . . . . Shielding Activations . | . . . . Robots Disrupted . | . . . . Combat Hostiles . | . . . . Robots Corrupted . | . . . . Combat Hostiles . | . . . . Parts Fried . | . . . . Impact Corruptions . | . . . . Robots Melted . | . . . . Combat Hostiles . | . . . . Parts Melted 8 | . 2 . 6 Heat Transferred 2554 | 198 1042 . 1314 Parts Sabotaged . | . . . . Parts Stolen . | . . . . Parts Stripped . | . . . . Power Chain Reactions 1 | . . . 1 Alert | -11 -10 -10 -8 ------- Run | Yrd Mat Sub Mat Maximum Alert Level . | . . . . Low Security (%) 100 | 100 100 . 100 Level 1 . | . . . . Level 2 . | . . . . Level 3 . | . . . . Level 4 . | . . . . Level 5 . | . . . . High Security . | . . . . Max Security . | . . . . Peak Influence 110 | 10 65 . 110 Initial . | . . . . Average 24 | 1 28 . 28 Influence Increases 335 | 15 115 . 205 Destroy 0b10 Robot/C 220 | . 80 . 140 Destroy 0b10 Robot/NC 30 | 15 . . 15 Destroy Leader 70 | . 20 . 50 Lose Combat Pursuer 15 | . 15 . . Influence Decreases 316 | 15 90 25 186 Entered New Map 13 | . . 13 . Time Decay 213 | 15 80 12 106 Lost Part 90 | . 10 . 80 Squads Dispatched 3 | . . . 3 Investigation . | . . . . Extermination . | . . . . Reinforcement 3 | . . . 3 Assault . | . . . . Garrison . | . . . . Intercept . | . . . . Searches Triggered . | . . . . Construction Impeded . | . . . . Haulers Reinforced . | . . . . Active Scanning Responses . | . . . . Cargo Convoy Interrupts . | . . . . Stealth | -11 -10 -10 -8 --------- Run | Yrd Mat Sub Mat Distress Signals 1 | . . . 1 Communications Jammed . | . . . . Distress Signals . | . . . . Times Spotted 23 | . 5 1 17 Peak Tracking Total 6 | . 3 1 6 Tactical Retreats 1 | . 1 . . Traps | -11 -10 -10 -8 ------- Run | Yrd Mat Sub Mat Traps Triggered . | . . . . Indirectly . | . . . . Trap Hack Attempts . | . . . . Triggered . | . . . . Disarmed . | . . . . Reprogrammed . | . . . . Reused . | . . . . Traps Extracted . | . . . . Installed . | . . . . Triggered . | . . . . Machines | -11 -10 -10 -8 ---------- Run | Yrd Mat Sub Mat Machines Disabled . | . . . . Max in Single Turn . | . . . . Machines Repaired . | . . . . Machines Dismantled . | . . . . Machines Sabotaged . | . . . . Overloaded Fab Kills . | . . . . Hacking | -11 -10 -10 -8 --------- Run | Yrd Mat Sub Mat Machines Accessed 1 | . 1 . . Terminals 1 | . 1 . . Fabricators . | . . . . Repair Stations . | . . . . Recycling Units . | . . . . Scanalyzers . | . . . . Garrison Access . | . . . . Total Hacks 3 | . 3 . . Successful 2 | . 2 . . Failed 1 | . 1 . . Catastrophic . | . . . . Database Lockouts . | . . . . Manual . | . . . . Terminals 3 | . 3 . . Fabricators . | . . . . Repair Stations . | . . . . Recycling Units . | . . . . Scanalyzers . | . . . . Garrison Access . | . . . . Terminal Hacks 2 | . 2 . . Record 1 | . 1 . . Robot Analysis 1 | . 1 . . Fabricator Hacks . | . . . . Repair Station Hacks . | . . . . Recycling Unit Hacks . | . . . . Scanalyzer . | . . . . Garrison Access Hacks . | . . . . Unauthorized Hacks . | . . . . Terminals . | . . . . Fabricators . | . . . . Repair Stations . | . . . . Recycling Units . | . . . . Scanalyzers . | . . . . Garrison Access . | . . . . Data Cores Recovered . | . . . . Used . | . . . . Hacking Detections . | . . . . Full Trace Events . | . . . . Feedback Events . | . . . . Feedback Blocked . | . . . . Robot Schematics Acquired . | . . . . Robots Built . | . . . . Authchips . | . . . . Time . | . . . . Total Robot Build Rating . | . . . . Part Schematics Acquired . | . . . . Parts Built . | . . . . Authchips . | . . . . Time . | . . . . Total Part Build Rating . | . . . . Parts Repaired . | . . . . Time . | . . . . Parts Recycled . | . . . . Recycled Matter . | . . . . Retrieved Matter . | . . . . Retrieved Components . | . . . . Parts Scanalyzed . | . . . . Part Schematics Acquired . | . . . . Parts Damaged . | . . . . Bothacking | -11 -10 -10 -8 ------------ Run | Yrd Mat Sub Mat Used RIF Installer . | . . . . Robots Hacked . | . . . . Non-combat . | . . . . Combat . | . . . . Robot Hacks Applied . | . . . . Relay Couplers Released . | . . . . Fabnet Peak Effective % . | . . . . Robots Rewired . | . . . . Allies Hacked . | . . . . Hacks Repelled . | . . . . Allies | -11 -10 -10 -8 -------- Run | Yrd Mat Sub Mat Total Allies . | . . . . Largest Group . | . . . . Highest-Rated Group . | . . . . Highest-Rated Ally . | . . . . Total Orders . | . . . . Ally Attacks . | . . . . Total Damage . | . . . . Kills . | . . . . Allies Corrupted . | . . . . Allies Melted . | . . . . Intel | -11 -10 -10 -8 ------- Run | Yrd Mat Sub Mat Active Infowar (turns) 1064 | 23 231 373 437 Seismic 1064 | 23 231 373 437 Robot Analysis Total 1 | . 1 . . Derelict Logs Recovered 1 | . . 1 . Drone Launches . | . . . . Drone Recoveries . | . . . . Exploration | -11 -10 -10 -8 ------------- Run | Yrd Mat Sub Mat Turns Passed 1156 | 115 231 373 437 Spaces Moved 436 | 76 77 197 86 Core 24 | 18 . . 6 Treads . | . . . . Legs 412 | 58 77 197 80 Wheels . | . . . . Hover . | . . . . Flight . | . . . . Fastest Speed 50 | 50 120 190 120 Average Speed 202 | 103 160 190 358 Slowest Speed 2000 | 120 190 190 2000 Overloaded Moves . | . . . . Propulsion Burnouts . | . . . . Robots Hopped . | . . . . Potential Cave-ins . | . . . . Cave-ins Triggered . | . . . . Exploration Rate (%) 13 | 4 14 17 17 Regions Visited 3 Branch Regions 1 Pre-discovered Areas 1 | . . 1 . Known Exits Taken . | . . . . Unknown Exits Taken 3 | 1 1 1 . Scrap Searched . | . . . . Spaces Dug . | . . . . Terrain Destroyed . | . . . . Melee . | . . . . Projectile . | . . . . AOE . | . . . . Terrain Rammed . | . . . . Walls Destroyed . | . . . . Machines Disabled . | . . . . Actions | -11 -10 -10 -8 --------- Run | Yrd Mat Sub Mat Total 581 | 102 131 196 152 Wait 23 | . 17 . 6 Move 433 | 75 76 196 86 Hop . | . . . . Pick Up 33 | 13 4 . 16 Fast Attach 1 | . 1 . . Attach 14 | 7 1 . 6 Detach . | . . . . Swap 3 | . 1 . 2 Drop 6 | 1 1 . 4 Fire 67 | 5 30 . 32 Melee . | . . . . Ram . | . . . . Kick 1 | 1 . . . Crush . | . . . . Escape Stasis . | . . . . Rewire . | . . . . Trap . | . . . . Miscellaneous . | . . . . Route ------- -11/Scrapyard -10/Materials -10/Subcaves -8/Materials History --------- Turn | Location | Event 29 | -11/Scrapyard | Discovered new exit (range 15) 116 | -11/Scrapyard | Entered Materials 223 | -10/Materials | Core integrity fell below 50% 337 | -10/Materials | Discovered new exit (range 5) 342 | -10/Materials | Build established: Mutant 347 | -10/Materials | Entered Subcaves 454 | -10/Subcaves | Learned location of Storage (-9) 659 | -10/Subcaves | Discovered new exit (range 8) 720 | -10/Subcaves | Entered Materials 720 | -8/Materials | Evolved 4 slots: Propulsion x2, Utility x2 1041 | -8/Materials | Lost 6 parts (4n2w) 1145 | -8/Materials | Core integrity fell below 50% 1154 | -8/Materials | Core integrity fell below 20% 1157 | -8/Materials | Destroyed by H-61 Shepherd with Heavy Assault Cannon Last Messages --------------- 01116_ R-06 Scavenger collects Corrupted Aluminum Leg. 01117_ W-25 Informer sends out distress signal. 01119_ R-06 Scavenger collects Datajack. 01131_ Penetrated by Slug. 01134_ U-05 Engineer builds a Wall. 01135_ EM Pulse Cannon destroyed. 01137_ Utility Shielding destroyed. 01137_ Knocked back. 01137_ Acquired Wheel. 01138_ Dropped Corrupted Aluminum Leg. 01140_ U-05 Engineer builds a Wall. 01142_ Cld. Ion Engine destroyed. 01145_ Hpw. Shotgun destroyed. 01145_ Critical hit (Burn: +37). 01146_ Knocked back. 01152_ T-07 Excavator destroyed. 01154_ U-05 Engineer builds a Wall. 01154_ Critical hit (Burn: +37). 01154_ K-01 Serf collects debris. 01155_ Knocked back. Map ----- +----------------------------------------------------+ | ?????# #???# ! # #####???????????????? | | ?????# ##### / ????????? | | ?????# T + """ "" # ????????? | | ?????# ##### """ """ # ############????????? | | ?????# #???# """ S" # #???????????????????? | | ?????## ##???# # #???????????????????? | | ??????# #????########### #???????????????????? | | ??????# #######????????# #???????????????????? | | ??????# # #????????# #???????????????????? | | ??????# # """ #????????# #???????????????????? | | ??????# # """ #????????# #???????????????????? | | ??????# # """ #????????# #???????????????????? | | ?+##### # #????????? k#???????????????????? | | + """ #????????? #???????????????????? | | # """ #????????? #???????????????????? | | # """ #????????? #???????????????????? | | # #?????????? #???????????????????? | | " """ # #????????? #???????????????????? | | """""" ####+#####+#???? #####???????????????? | | """ " # ! ## #???? //#???????????????? | | ? # ## #???? //#???????????????? | | # ## ####? k% !!#???????????????? | | # ! ## #####u%%! !!#???????????????? | | ?###### # # u | **#???????????????? | | ??????# # + [ ^ % **#???????????????? | | ??????# # #[ [!!!@ #???????????????????? | | ??????# # #! !!!! #???????????????????? | | ??????# # #%%%=u% o#???????????????????? | | ??????? # # =[=!= #???????????????????? | | ??????????# #*^!%! + === ????????????? | | ??????????######### %*!! # == ????????????? | | ??????????????????#%Y*!** #? ??????????????? | | ??????????????????# %=%[ #??####?????????????? | | ??????????????????# H|=! #??????????????????? | | ????????????????? Y ?????????????????? | | ???????????????? ???????????????? | | ??????????????? ! ??????????????? | | ?????????????? ??????????????? | | ?????????????# ######## #####??????????????? | | ????????????? ??????? #??????????????????? | | ????????????? ??????? #??????????????????? | | ?????????????? ???????? ???????????????????? | | ?????????????????????????? ??????????????????????? | | ?????????????????????????????????????????????????? | | ?????????????????????????????????????????????????? | | ?????????????????????????????????????????????????? | | ?????????????????????????????????????????????????? | | ?????????????????????????????????????????????????? | | ?????????????????????????????????????????????????? | | ?????????????????????????????????????????????????? | +----------------------------------------------------+ Best States ------------- Heat Dissipation 31 Energy Generation 14 Energy Capacity 280 Matter Stores 300 Matter Capacity 300 Sight Range 16 Terrain Scan Density 10 Utility Shielding 33 Evasion (%) 55 Item Schematics ----------------- None Robot Schematics ------------------ None Fabricated ------------ Nothing Repaired ---------- Nothing Alien Tech Used ----------------- None Achievements -------------- None Challenges ------------ None Game ------ Seed SeismicNanofilamentsPendant Manual? 0 Play Time 00:09:19 Cumulative 40.0 hours Start 2025.06.01 @ 17:13:43 End 2025.06.01 @ 17:27:25 Sessions 1 Manual Loads 0 Difficulty Rogue Special Mode None Game No. 68 Rogue 68 Adventurer 0 Explorer 0 Win Type - Total 0 Types 0/0/0/0/0/0/0/0/0/0 Lore% 33 Gallery% 35 Achievement% 30 Wizard Run 0 Options --------- Layout 0 ASCII 0 Keyboard 0 Movement Mouse Keybinds 0 Fullscreen 1 Font 18/SmallcapsGlow Map View 76x50 Zoom Use 0% Tactical HUD 1 Map Filters NONE Filters NONE Steam 1 RUN: b8c57209-40f5-4bf9-89b4-c83a21e591e7